[Event "22nd Hogeschool Zeeland 2018"]
[Site "Vlissingen"]
[Date "2018.08.07"]
[Round "5"]
[White "Beerdsen, Thomas"]
[Black "Muetsch, Annmarie"]
[Result "1-0"]
[ECO "B27"]
[WhiteElo "2469"]
[BlackElo "2239"]
[Annotator "ChessBase"]
[PlyCount "47"]
[EventDate "2018.08.04"]
[EventType "swiss"]
[EventCountry "NED"]
[SourceTitle "playchess.com"]
[Source "ChessBase"]
[SourceQuality "1"]
[TimeControl "40/5400+30:1800+30"]

1. e4 {[%emt 0:05:06]} c5 {[%emt 0:00:00]} 2. Nf3 {[%emt 0:00:12]} g6 {[%emt 0:00:00]} 3. c3 {[%emt 0:01:01]} Bg7 {[%emt 0:00:12]} 4. d4 {[%emt 0:00:13]} cxd4 {[%emt 0:00:07]} 5. cxd4 {[%emt 0:00:04]} d5 {[%emt 0:00:16]} 6. e5 {[%emt 0:01:35]} Bg4 {[%emt 0:00:18]} 7. Qb3 {[%emt 0:04:53]} Qd7 {[%emt 0:12:20]} 8. Nc3 {[%emt 0:01:46]} Bxf3 {[%emt 0:08:40]} 9. gxf3 {[%emt 0:00:06]} e6 {[%emt 0:00:34]} 10. Nb5 {[%emt 0:07:40]} Bf8 {[%emt 0:01:10]} 11. Bf4 {[%emt 0:00:41]} Nc6 {[%emt 0:02:38]} 12. Rc1 {[%emt 0:09:34]} a6 {[%emt 0:20:43]} 13. Nd6+ {[%emt 0:00:08]} Bxd6 {[%emt 0:00:06]} 14. exd6 {[%emt 0:00:04]} f6 {[%emt 0:01:19]} 15. Bh3 {[%emt 0:04:55]} g5 {[%emt 0:06:45]} 16. O-O {[%emt 0:06:21]} Kf8 {[%emt 0:18:07]} 17. Bg3 {[%emt 0:06:01]} h5 {[%emt 0:02:54]} 18. Bxe6 {[%emt 0:04:45]} Qxe6 {[%emt 0:00:46]} 19. Qxb7 {[%emt 0:00:06]} Rd8 {[%emt 0:13:17]} 20. Rxc6 {[%emt 0:01:20]} h4 {[%emt 0:01:52]} 21. d7 {[%emt 0:01:28]} Qh3 {[%emt 0:07:10]} 22. Rc8 {[%emt 0:01:18]} hxg3 {[%emt 0:00:12]} 23. Rxd8+ {[%emt 0:00:04]} Kf7 {[%emt 0:00:12]} 24. Qxd5+ {[%emt 0:00:11]} 1-0

[Event "22nd Hogeschool Zeeland 2018"]
[Site "Vlissingen"]
[Date "2018.08.07"]
[Round "5"]
[White "Vrolijk, Liam"]
[Black "Van den Berg, Bram"]
[Result "1-0"]
[ECO "D85"]
[WhiteElo "2430"]
[BlackElo "2221"]
[Annotator "NA RC"]
[PlyCount "77"]
[EventDate "2018.08.04"]
[EventType "swiss"]
[EventCountry "NED"]
[SourceTitle "playchess.com"]
[Source "ChessBase"]
[SourceQuality "1"]
[TimeControl "40/5400+30:1800+30"]

1. d4 {[%emt 0:00:00]} Nf6 {[%emt 0:00:00]} 2. c4 {[%emt 0:00:00]} g6 {[%emt 0:00:00]} 3. Nc3 {[%emt 0:00:03]} d5 {[%emt 0:00:00]} 4. cxd5 {[%emt 0:04:04]} Nxd5 {[%emt 0:00:24]} 5. e4 {[%emt 0:00:09]} Nxc3 {[%emt 0:00:06]} 6. bxc3 {[%emt 0:00:06]} Bg7 {[%emt 0:00:12]} 7. Nf3 {[%emt 0:00:45]} c5 {[%emt 0:00:12]} 8. Be3 {[%emt 0:00:07]} O-O {[%emt 0:00:31]} 9. Qd2 {[%emt 0:00:27]} Qa5 {[%emt 0:01:40]} 10. Rb1 {[%emt 0:00:21]} cxd4 {[%emt 0:03:10]} 11. cxd4 {[%emt 0:00:21]} Qxd2+ {[%emt 0:00:05]} 12. Kxd2 {[%emt 0:06:39]} Rd8 {[%emt 0:07:36]} 13. Bd3 {[%emt 0:07:07]} Bg4 {[%emt 0:02:30]} 14. Rxb7 {[%emt 0:16:56]} Bxf3 {[%emt 0:10:53]} 15. gxf3 {[%emt 0:01:34]} Bxd4 {[%emt 0:01:10]} 16. Rc1 {[%emt 0:06:49]} Bb6 {[%emt 0:08:15]} 17. Ke2 {[%emt 0:03:07]} Nd7 {[%emt 0:03:05]} 18. Bb5 {[%emt 0:01:24]} Nf8 {[%emt 0:00:10]} 19. Rxe7 {[%emt 0:01:36]} Ne6 {[%emt 0:03:26]} 20. Bc4 {[%emt 0:02:23]} Kf8 {[%emt 0:00:38]} 21. Rb7 {[%emt 0:01:06]} Rab8 {[%emt 0:05:55]} 22. Rxb8 {[%emt 0:02:21]} Rxb8 {[%emt 0:00:39]} 23. Bb3 {[%emt 0:05:08]} Ke7 {[%emt 0:04:43]} 24. f4 {[%emt 0:02:18]} Rb7 {[%emt 0:04:53]} 25. Bd5 {[%emt 0:01:18]} Rd7 {[%emt 0:00:43]} 26. Rc4 {[%emt 0:06:08]} Nd8 {[%emt 0:13:20]} 27. Rb4 {[%emt 0:02:50]} Bxe3 {[%emt 0:01:32]} 28. fxe3 {[%emt 0:00:16]} Ne6 {[%emt 0:00:39]} 29. Rc4 {[%emt 0:03:03]} Rd6 {[%emt 0:01:46]} 30. Bc6 {[%emt 0:04:14]} Rd8 {[%emt 0:03:59]} 31. Ba4 {[%emt 0:03:44]} Rb8 {[%emt 0:05:14]} 32. Bb3 {[%emt 0:00:33]} Rb7 {[%emt 0:01:18]} 33. e5 {[%emt 0:01:40]} Ng7 {[%emt 0:02:20]} 34. e4 {[%emt 0:04:59]} Rd7 {[%emt 0:02:52]} 35. Ke3 {[%emt 0:00:21]} Rb7 {[%emt 0:00:31]} 36. Rc6 {[%emt 0:00:22]} Rd7 {[%emt 0:00:24]} 37. Bd5 {[%emt 0:01:16]} h6 {[%emt 0:00:19]} 38. Rf6 {[%emt 0:00:51]} Ke8 {[%emt 0:00:16]} 39. Bc6 {[%emt 0:00:08]} 1-0

[Event "22nd Hogeschool Zeeland 2018"]
[Site "Vlissingen"]
[Date "2018.08.07"]
[Round "5"]
[White "Shyaamnikhil, P."]
[Black "Haast, Mark"]
[Result "1/2-1/2"]
[ECO "A37"]
[WhiteElo "2389"]
[BlackElo "2350"]
[Annotator "NA"]
[PlyCount "50"]
[EventDate "2018.08.04"]
[EventType "swiss"]
[EventCountry "NED"]
[SourceTitle "playchess.com"]
[Source "ChessBase"]
[SourceQuality "1"]
[TimeControl "40/5400+30:1800+30"]

1. Nf3 {[%emt 0:00:00]} c5 {[%emt 0:13:32]} 2. g3 {[%emt 0:01:04]} g6 {[%emt 0:00:16]} 3. Bg2 {[%emt 0:01:00]} Bg7 {[%emt 0:00:16]} 4. O-O {[%emt 0:00:25]} Nc6 {[%emt 0:00:04]} 5. c4 {[%emt 0:01:34]} e6 {[%emt 0:04:25]} 6. Nc3 {[%emt 0:01:57]} Nge7 {[%emt 0:00:26]} 7. d3 {[%emt 0:09:20]} O-O {[%emt 0:01:24]} 8. Bd2 {[%emt 0:01:27]} b6 {[%emt 0:02:42]} 9. a3 {[%emt 0:03:06]} Bb7 {[%emt 0:02:17]} 10. Rb1 {[%emt 0:01:04]} d6 {[%emt 0:02:46]} 11. b4 {[%emt 0:00:42]} Qd7 {[%emt 0:00:36]} 12. Qc1 {[%emt 0:08:24]} Nf5 {[%emt 0:04:52]} 13. Ne1 {[%emt 0:06:34]} Rac8 {[%emt 0:02:51]} 14. bxc5 {[%emt 0:05:09]} dxc5 {[%emt 0:01:42]} 15. Ne4 {[%emt 0:01:36]} Ncd4 {[%emt 0:01:28]} 16. Qd1 {[%emt 0:00:09]} Bc6 {[%emt 0:00:47]} 17. Nc3 {[%emt 0:00:26]} h6 {[%emt 0:09:43]} 18. a4 {[%emt 0:13:54]} Rfd8 {[%emt 0:03:28]} 19. Nb5 {[%emt 0:04:32]} a6 {[%emt 0:08:57]} 20. Nxd4 {[%emt 0:05:40]} Nxd4 {[%emt 0:00:15]} 21. Bxc6 {[%emt 0:00:08]} Qxc6 {[%emt 0:01:01]} 22. Nc2 {[%emt 0:01:16]} Nf5 {[%emt 0:01:29]} 23. Ne3 {[%emt 0:00:13]} Nd4 {[%emt 0:00:26]} 24. Nc2 {[%emt 0:00:19]} Nf5 {[%emt 0:00:13]} 25. Ne3 {[%emt 0:00:09]} Nd4 {[%emt 0:36:34]} 1/2-1/2

[Event "22nd Hogeschool Zeeland 2018"]
[Site "Vlissingen"]
[Date "2018.08.07"]
[Round "5"]
[White "Rijnaarts, Sjef"]
[Black "De Boer, Bas"]
[Result "1/2-1/2"]
[ECO "B48"]
[WhiteElo "2339"]
[BlackElo "2129"]
[Annotator "NA"]
[PlyCount "62"]
[EventDate "2018.08.04"]
[EventType "swiss"]
[EventCountry "NED"]
[SourceTitle "playchess.com"]
[Source "ChessBase"]
[SourceQuality "1"]
[TimeControl "40/5400+30:1800+30"]

1. e4 {[%emt 0:06:05]} c5 {[%emt 0:00:00]} 2. Nf3 {[%emt 0:00:10]} e6 {[%emt 0:00:00]} 3. d4 {[%emt 0:00:13]} cxd4 {[%emt 0:00:00]} 4. Nxd4 {[%emt 0:00:05]} Nc6 {[%emt 0:00:00]} 5. Nc3 {[%emt 0:00:08]} Qc7 {[%emt 0:00:02]} 6. Be3 {[%emt 0:00:14]} a6 {[%emt 0:00:07]} 7. Qd2 {[%emt 0:00:34]} Nf6 {[%emt 0:00:31]} 8. f4 {[%emt 0:00:14]} Bb4 {[%emt 0:01:58]} 9. Bd3 {[%emt 0:00:22]} b5 {[%emt 0:01:20]} 10. a3 {[%emt 0:01:09]} Bxc3 {[%emt 0:03:12]} 11. Qxc3 {[%emt 0:01:18]} Bb7 {[%emt 0:01:38]} 12. e5 {[%emt 0:22:01]} Nd5 {[%emt 0:02:38]} 13. Qd2 {[%emt 0:00:31]} Nxf4 {[%emt 0:07:26]} 14. Bxf4 {[%emt 0:10:12]} Nxd4 {[%emt 0:00:07]} 15. Qf2 {[%emt 0:00:13]} Nc6 {[%emt 0:09:44]} 16. O-O {[%emt 0:20:04]} g5 {[%emt 0:21:07]} 17. Bxg5 {[%emt 0:01:56]} Nxe5 {[%emt 0:00:09]} 18. Qf6 {[%emt 0:04:56]} Qc5+ {[%emt 0:05:39]} 19. Kh1 {[%emt 0:00:15]} Rf8 {[%emt 0:02:49]} 20. Rf5 {[%emt 0:04:12]} exf5 {[%emt 0:04:20]} 21. Re1 {[%emt 0:00:26]} Bxg2+ {[%emt 0:01:10]} 22. Kxg2 {[%emt 0:00:14]} Qc6+ {[%emt 0:00:05]} 23. Qxc6 {[%emt 0:00:28]} dxc6 {[%emt 0:00:06]} 24. Rxe5+ {[%emt 0:00:20]} Kd7 {[%emt 0:00:05]} 25. Bxf5+ {[%emt 0:00:32]} Kc7 {[%emt 0:02:48]} 26. Bf4 {[%emt 0:00:53]} Kb6 {[%emt 0:00:09]} 27. Be3+ {[%emt 0:03:44]} Kc7 {[%emt 0:00:39]} 28. Bxh7 {[%emt 0:05:24]} Rh8 {[%emt 0:02:08]} 29. Re7+ {[%emt 0:02:30]} Kd6 {[%emt 0:00:05]} 30. Rxf7 {[%emt 0:00:25]} Ke6 {[%emt 0:00:16]} 31. Rc7 {[%emt 0:01:19]} Kd5 {[%emt 0:35:12]} 1/2-1/2

[Event "22nd Hogeschool Zeeland 2018"]
[Site "Vlissingen"]
[Date "2018.08.07"]
[Round "5"]
[White "Lefebvre, Herve"]
[Black "Romanishin, Oleg M"]
[Result "1/2-1/2"]
[ECO "C45"]
[WhiteElo "2304"]
[BlackElo "2441"]
[Annotator "NA"]
[PlyCount "31"]
[EventDate "2018.08.04"]
[EventType "swiss"]
[EventCountry "NED"]
[SourceTitle "playchess.com"]
[Source "ChessBase"]
[SourceQuality "1"]
[TimeControl "40/5400+30:1800+30"]

1. e4 {[%emt 0:00:00]} e5 {[%emt 0:00:00]} 2. Nf3 {[%emt 0:00:00]} Nc6 {[%emt 0:00:00]} 3. d4 {[%emt 0:00:01]} exd4 {[%emt 0:00:00]} 4. Nxd4 {[%emt 0:00:06]} Bc5 {[%emt 0:00:18]} 5. Nb3 {[%emt 0:01:12]} Bb4+ {[%emt 0:02:03]} 6. c3 {[%emt 0:02:46]} Be7 {[%emt 0:00:10]} 7. f4 {[%emt 0:01:13]} d6 {[%emt 0:03:42]} 8. N1d2 {[%emt 0:01:59]} d5 {[%emt 0:23:47]} 9. e5 {[%emt 0:01:08]} Bf5 {[%emt 0:00:29]} 10. Nf3 {[%emt 0:00:36]} Nh6 {[%emt 0:02:31]} 11. Bd3 {[%emt 0:02:34]} O-O {[%emt 0:00:11]} 12. O-O {[%emt 0:00:15]} Qd7 {[%emt 0:01:29]} 13. Be3 {[%emt 0:10:53]} Rad8 {[%emt 0:15:05]} 14. h3 {[%emt 0:14:49]} f6 {[%emt 0:04:55]} 15. Nbd4 {[%emt 0:10:48]} Nxd4 {[%emt 0:04:55]} 16. cxd4 {[%emt 0:49:40]} 1/2-1/2

[Event "22nd Hogeschool Zeeland 2018"]
[Site "Vlissingen"]
[Date "2018.08.07"]
[Round "5"]
[White "Boelhouwer, Collin"]
[Black "Van Delft, Merijn"]
[Result "1/2-1/2"]
[ECO "B06"]
[WhiteElo "2128"]
[BlackElo "2395"]
[Annotator "NA"]
[PlyCount "52"]
[EventDate "2018.08.04"]
[EventType "swiss"]
[EventCountry "NED"]
[SourceTitle "playchess.com"]
[Source "ChessBase"]
[SourceQuality "1"]
[TimeControl "40/5400+30:1800+30"]

1. e4 {[%emt 0:00:00]} g6 {[%emt 0:05:24]} 2. d4 {[%emt 0:00:00]} Bg7 {[%emt 0:00:23]} 3. Nc3 {[%emt 0:00:00]} a6 {[%emt 0:00:25]} 4. a4 {[%emt 0:01:05]} b6 {[%emt 0:00:43]} 5. Be3 {[%emt 0:01:39]} Bb7 {[%emt 0:03:02]} 6. Qd2 {[%emt 0:00:52]} d6 {[%emt 0:01:25]} 7. Bc4 {[%emt 0:08:17]} e6 {[%emt 0:02:57]} 8. f3 {[%emt 0:03:03]} Nf6 {[%emt 0:04:36]} 9. h4 {[%emt 0:04:58]} h6 {[%emt 0:03:03]} 10. Nge2 {[%emt 0:02:29]} d5 {[%emt 0:04:58]} 11. Bd3 {[%emt 0:04:41]} dxe4 {[%emt 0:05:32]} 12. Nxe4 {[%emt 0:01:17]} Nd5 {[%emt 0:01:21]} 13. Bf2 {[%emt 0:05:03]} Nc6 {[%emt 0:01:34]} 14. c3 {[%emt 0:03:17]} Qe7 {[%emt 0:06:08]} 15. O-O {[%emt 0:07:19]} O-O {[%emt 0:02:57]} 16. Nf4 {[%emt 0:04:55]} Nxf4 {[%emt 0:05:01]} 17. Qxf4 {[%emt 0:00:27]} e5 {[%emt 0:02:35]} 18. dxe5 {[%emt 0:01:08]} Qxe5 {[%emt 0:00:24]} 19. Bg3 {[%emt 0:02:54]} Qxf4 {[%emt 0:00:33]} 20. Bxf4 {[%emt 0:00:07]} Ne5 {[%emt 0:00:10]} 21. Bc2 {[%emt 0:01:31]} f5 {[%emt 0:05:22]} 22. Nd2 {[%emt 0:03:00]} c5 {[%emt 0:02:00]} 23. Rfe1 {[%emt 0:02:32]} Rae8 {[%emt 0:01:23]} 24. Re3 {[%emt 0:03:15]} Bc6 {[%emt 0:02:22]} 25. Rae1 {[%emt 0:01:49]} Nf7 {[%emt 0:00:21]} 26. Rxe8 {[%emt 0:13:23]} Rxe8 {[%emt 0:00:11]} 1/2-1/2

[Event "22nd Hogeschool Zeeland 2018"]
[Site "Vlissingen"]
[Date "2018.08.08"]
[Round "5"]
[White "Van Liempt, Michael"]
[Black "Ree, Hans"]
[Result "1/2-1/2"]
[ECO "A40"]
[WhiteElo "2068"]
[BlackElo "2303"]
[Annotator "ChessBase"]
[PlyCount "261"]
[EventDate "2018.08.04"]
[EventType "swiss"]
[EventCountry "NED"]
[SourceTitle "playchess.com"]
[Source "ChessBase"]
[SourceQuality "1"]
[TimeControl "40/5400+30:1800+30"]

1. d4 {[%emt 0:00:00]} e6 {[%emt 0:00:00]} 2. c4 {[%emt 0:00:36]} b6 {[%emt 0:00:21]} 3. Nc3 {[%emt 0:00:53]} Bb4 {[%emt 0:00:17]} 4. Nf3 {[%emt 0:00:56]} Bb7 {[%emt 0:00:41]} 5. e3 {[%emt 0:03:14]} f5 {[%emt 0:00:30]} 6. Be2 {[%emt 0:03:06]} Nf6 {[%emt 0:00:19]} 7. O-O {[%emt 0:00:59]} O-O {[%emt 0:00:11]} 8. Nd2 {[%emt 0:06:15]} c5 {[%emt 0:02:32]} 9. Bf3 {[%emt 0:01:27]} Nc6 {[%emt 0:02:10]} 10. a3 {[%emt 0:03:16]} Bxc3 {[%emt 0:00:12]} 11. bxc3 {[%emt 0:00:21]} d6 {[%emt 0:04:32]} 12. Re1 {[%emt 0:04:00]} e5 {[%emt 0:08:56]} 13. Nb3 {[%emt 0:09:34]} Qc7 {[%emt 0:04:48]} 14. a4 {[%emt 0:04:58]} a5 {[%emt 0:04:37]} 15. Rb1 {[%emt 0:02:21]} Rae8 {[%emt 0:01:34]} 16. d5 {[%emt 0:07:11]} Ne7 {[%emt 0:00:58]} 17. e4 {[%emt 0:01:03]} fxe4 {[%emt 0:00:52]} 18. Bxe4 {[%emt 0:00:24]} Nxe4 {[%emt 0:00:15]} 19. Rxe4 {[%emt 0:00:22]} Bc8 {[%emt 0:00:14]} 20. Rb2 {[%emt 0:02:00]} Bf5 {[%emt 0:00:51]} 21. Re1 {[%emt 0:00:41]} Ng6 {[%emt 0:01:42]} 22. Be3 {[%emt 0:07:50]} h6 {[%emt 0:03:23]} 23. Nc1 {[%emt 0:01:35]} Rb8 {[%emt 0:01:14]} 24. Ne2 {[%emt 0:00:43]} e4 {[%emt 0:03:56]} 25. Bf4 {[%emt 0:04:31]} Qe7 {[%emt 0:01:45]} 26. Qc1 {[%emt 0:02:04]} Bd7 {[%emt 0:04:15]} 27. Qe3 {[%emt 0:02:48]} Bxa4 {[%emt 0:07:02]} 28. Reb1 {[%emt 0:01:45]} Nh4 {[%emt 0:04:29]} 29. Rxb6 {[%emt 0:03:39]} Rxb6 {[%emt 0:00:13]} 30. Rxb6 {[%emt 0:00:12]} Nf5 {[%emt 0:00:12]} 31. Qc1 {[%emt 0:00:53]} Qf6 {[%emt 0:03:26]} 32. Ng3 {[%emt 0:03:04]} Nh4 {[%emt 0:04:14]} 33. Be3 {[%emt 0:02:11]} Be8 {[%emt 0:01:45]} 34. Nxe4 {[%emt 0:05:16]} Qg6 {[%emt 0:00:25]} 35. Ng3 {[%emt 0:00:18]} a4 {[%emt 0:00:59]} 36. Bxc5 {[%emt 0:00:59]} Rf6 {[%emt 0:01:39]} 37. Bd4 {[%emt 0:00:36]} Rf5 {[%emt 0:01:06]} 38. Qa3 {[%emt 0:03:12]} Rf8 {[%emt 0:32:25]} 39. Qxd6 {[%emt 0:01:14]} Qd3 {[%emt 0:00:00]} 40. Qe6+ {[%emt 0:00:58]} Bf7 {[%emt 0:00:00]} 41. Qe2 {[%emt 0:30:32]} Qxe2 {[%emt 0:01:10]} 42. Nxe2 {[%emt 0:03:57]} Ra8 {[%emt 0:00:47]} 43. Rb2 {[%emt 0:06:17]} a3 {[%emt 0:02:03]} 44. Ra2 {[%emt 0:00:24]} Ra4 {[%emt 0:00:35]} 45. f3 {[%emt 0:02:15]} Nf5 {[%emt 0:00:31]} 46. Bc5 {[%emt 0:00:49]} Rxc4 {[%emt 0:01:44]} 47. Bb4 {[%emt 0:00:00]} Bxd5 {[%emt 0:00:00]} 48. Rxa3 {[%emt 0:00:00]} Rc8 {[%emt 0:00:00]} 49. Ra5 {[%emt 0:00:00]} Be6 {[%emt 0:00:00]} 50. Nf4 {[%emt 0:00:00]} Bd7 {[%emt 0:00:00]} 51. Rd5 {[%emt 0:00:00]} Rc7 {[%emt 0:00:00]} 52. Kf2 {[%emt 0:00:00]} g5 {[%emt 0:00:00]} 53. Nd3 {[%emt 0:00:00]} Be6 {[%emt 0:00:00]} 54. Rd8+ {[%emt 0:00:00]} Kg7 {[%emt 0:00:00]} 55. Nc5 {[%emt 0:00:00]} Bf7 {[%emt 0:00:00]} 56. Ne4 {[%emt 0:00:00]} Ra7 {[%emt 0:00:00]} 57. Rd2 {[%emt 0:00:00]} Ra1 {[%emt 0:00:00]} 58. Nd6 {[%emt 0:00:00]} Nxd6 {[%emt 0:00:00]} 59. Rxd6 {[%emt 0:00:00]} Ra2+ {[%emt 0:00:00]} 60. Kg3 {[%emt 0:00:00]} Bc4 {[%emt 0:00:00]} 61. h4 {[%emt 0:00:00]} gxh4+ {[%emt 0:00:00]} 62. Kxh4 {[%emt 0:00:00]} Rxg2 {[%emt 0:00:00]} 63. Bc5 {[%emt 0:00:00]} Be2 {[%emt 0:00:00]} 64. Bd4+ {[%emt 0:00:00]} Kh7 {[%emt 0:00:00]} 65. Rf6 {[%emt 0:00:00]} Rg6 {[%emt 0:00:00]} 66. Rf8 {[%emt 0:00:40]} Rg5 {[%emt 0:00:00]} 67. f4 {[%emt 0:00:50]} Rh5+ {[%emt 0:01:38]} 68. Kg3 {[%emt 0:00:17]} Bd3 {[%emt 0:00:12]} 69. Kg4 {[%emt 0:02:46]} Be2+ {[%emt 0:00:08]} 70. Kg3 {[%emt 0:00:05]} Bd3 {[%emt 0:00:53]} 71. Be5 {[%emt 0:01:00]} Rf5 {[%emt 0:02:10]} 72. Rd8 {[%emt 0:00:41]} Bc4 {[%emt 0:03:12]} 73. Rc8 {[%emt 0:00:43]} Be6 {[%emt 0:00:11]} 74. Rc6 {[%emt 0:00:23]} Bd5 {[%emt 0:00:25]} 75. Rd6 {[%emt 0:00:38]} Bc4 {[%emt 0:00:50]} 76. Rd4 {[%emt 0:00:20]} Be6 {[%emt 0:02:49]} 77. c4 {[%emt 0:00:35]} Rh5 {[%emt 0:00:14]} 78. c5 {[%emt 0:00:15]} Rh3+ {[%emt 0:03:29]} 79. Kf2 {[%emt 0:00:47]} Rh2+ {[%emt 0:00:07]} 80. Ke3 {[%emt 0:00:27]} Rc2 {[%emt 0:00:24]} 81. Bd6 {[%emt 0:00:31]} Kg6 {[%emt 0:01:56]} 82. Rd1 {[%emt 0:01:20]} h5 {[%emt 0:03:38]} 83. Rg1+ {[%emt 0:00:41]} Kf6 {[%emt 0:01:13]} 84. Be5+ {[%emt 0:00:42]} Kf7 {[%emt 0:01:25]} 85. Rg7+ {[%emt 0:00:40]} Kf8 {[%emt 0:00:36]} 86. Rh7 {[%emt 0:01:18]} Kg8 {[%emt 0:03:20]} 87. Rh6 {[%emt 0:01:06]} Kf7 {[%emt 0:01:45]} 88. f5 {[%emt 0:00:50]} Bxf5 {[%emt 0:02:45]} 89. Rf6+ {[%emt 0:00:25]} Ke7 {[%emt 0:00:06]} 90. Rxf5 {[%emt 0:00:13]} Ke6 {[%emt 0:00:23]} 91. Rxh5 {[%emt 0:00:19]} Rxc5 {[%emt 0:00:11]} 92. Ke4 {[%emt 0:00:22]} Rc4+ {[%emt 0:00:48]} 93. Bd4 {[%emt 0:00:09]} Rc6 {[%emt 0:00:28]} 94. Rg5 {[%emt 0:00:47]} Kd6 {[%emt 0:00:46]} 95. Re5 {[%emt 0:01:09]} Rc1 {[%emt 0:00:34]} 96. Rd5+ {[%emt 0:00:23]} Ke6 {[%emt 0:00:02]} 97. Rb5 {[%emt 0:00:19]} Re1+ {[%emt 0:00:31]} 98. Be3 {[%emt 0:00:08]} Rd1 {[%emt 0:00:25]} 99. Ra5 {[%emt 0:00:09]} Rd6 {[%emt 0:00:57]} 100. Rh5 {[%emt 0:00:19]} Rc6 {[%emt 0:00:28]} 101. Bc5 {[%emt 0:00:36]} Kf7 {[%emt 0:01:39]} 102. Kd5 {[%emt 0:00:18]} Rg6 {[%emt 0:00:36]} 103. Bd4 {[%emt 0:00:23]} Ra6 {[%emt 0:01:14]} 104. Rh7+ {[%emt 0:00:56]} Kg6 {[%emt 0:00:09]} 105. Rg7+ {[%emt 0:00:10]} Kf5 {[%emt 0:00:16]} 106. Rf7+ {[%emt 0:00:15]} Kg6 {[%emt 0:00:08]} 107. Rf1 {[%emt 0:00:12]} Ra5+ {[%emt 0:01:05]} 108. Ke4 {[%emt 0:00:15]} Ra4 {[%emt 0:01:20]} 109. Rf6+ {[%emt 0:00:24]} Kg5 {[%emt 0:00:09]} 110. Rf7 {[%emt 0:00:33]} Kg6 {[%emt 0:01:00]} 111. Rg7+ {[%emt 0:00:09]} Kh6 {[%emt 0:00:30]} 112. Rg1 {[%emt 0:00:09]} Kh5 {[%emt 0:00:43]} 113. Rg2 {[%emt 0:00:33]} Kh6 {[%emt 0:01:13]} 114. Ke5 {[%emt 0:00:16]} Ra5+ {[%emt 0:03:36]} 115. Ke6 {[%emt 0:00:16]} Rb5 {[%emt 0:02:16]} 116. Be5 {[%emt 0:00:20]} Rb1 {[%emt 0:01:30]} 117. Kf7 {[%emt 0:01:34]} Kh5 {[%emt 0:01:27]} 118. Bf6 {[%emt 0:00:26]} Rb7+ {[%emt 0:00:39]} 119. Ke6 {[%emt 0:01:02]} Rb1 {[%emt 0:00:57]} 120. Be5 {[%emt 0:00:52]} Rf1 {[%emt 0:00:11]} 121. Rg8 {[%emt 0:00:24]} Kh4 {[%emt 0:00:37]} 122. Rg7 {[%emt 0:01:15]} Kh3 {[%emt 0:00:20]} 123. Kd5 {[%emt 0:01:08]} Rf2 {[%emt 0:01:20]} 124. Ke4 {[%emt 0:00:15]} Rg2 {[%emt 0:00:34]} 125. Rh7+ {[%emt 0:00:24]} Kg4 {[%emt 0:00:01]} 126. Bf4 {[%emt 0:00:17]} Re2+ {[%emt 0:00:28]} 127. Be3 {[%emt 0:00:11]} Rg2 {[%emt 0:00:07]} 128. Rh8 {[%emt 0:00:37]} Kg3 {[%emt 0:01:00]} 129. Rh1 {[%emt 0:01:46]} Kg4 {[%emt 0:00:16]} 130. Rh6 {[%emt 0:00:58]} Kg3 {[%emt 0:00:16]} 131. Bf4+ {[%emt 0:00:37]} 1/2-1/2

[Event "22nd Hogeschool Zeeland 2018"]
[Site "Vlissingen"]
[Date "2018.08.07"]
[Round "5"]
[White "Advait, Bagri"]
[Black "Grochal, Joey"]
[Result "0-1"]
[ECO "B40"]
[WhiteElo "1926"]
[BlackElo "2300"]
[Annotator "NA"]
[PlyCount "52"]
[EventDate "2018.08.04"]
[EventType "swiss"]
[EventCountry "NED"]
[SourceTitle "playchess.com"]
[Source "ChessBase"]
[SourceQuality "1"]
[TimeControl "40/5400+30:1800+30"]

1. e4 {[%emt 0:04:22]} c5 {[%emt 0:00:00]} 2. Nf3 {[%emt 0:00:19]} e6 {[%emt 0:00:00]} 3. b3 {[%emt 0:00:06]} d5 {[%emt 0:02:02]} 4. exd5 {[%emt 0:00:11]} exd5 {[%emt 0:00:20]} 5. Bb5+ {[%emt 0:00:10]} Bd7 {[%emt 0:01:23]} 6. Bxd7+ {[%emt 0:00:21]} Qxd7 {[%emt 0:00:55]} 7. O-O {[%emt 0:05:08]} Be7 {[%emt 0:02:37]} 8. Re1 {[%emt 0:02:47]} Nf6 {[%emt 0:02:31]} 9. Qe2 {[%emt 0:02:28]} Nc6 {[%emt 0:00:19]} 10. Ne5 {[%emt 0:00:10]} Nxe5 {[%emt 0:00:13]} 11. Qxe5 {[%emt 0:00:12]} O-O {[%emt 0:01:15]} 12. Bb2 {[%emt 0:05:40]} d4 {[%emt 0:08:02]} 13. Na3 {[%emt 0:02:44]} Bd6 {[%emt 0:03:24]} 14. Qe2 {[%emt 0:01:03]} Rad8 {[%emt 0:06:45]} 15. Nc4 {[%emt 0:09:07]} Bb8 {[%emt 0:04:04]} 16. a4 {[%emt 0:07:50]} Qf5 {[%emt 0:02:56]} 17. Qf3 {[%emt 0:02:12]} Qxf3 {[%emt 0:04:36]} 18. gxf3 {[%emt 0:00:14]} Rd5 {[%emt 0:00:09]} 19. Re7 {[%emt 0:05:35]} Rg5+ {[%emt 0:03:10]} 20. Kh1 {[%emt 0:00:29]} b6 {[%emt 0:11:54]} 21. Rb7 {[%emt 0:13:02]} Nd5 {[%emt 0:05:28]} 22. Re1 {[%emt 0:02:45]} Nf4 {[%emt 0:01:25]} 23. Rbe7 {[%emt 0:01:55]} Nh3 {[%emt 0:02:19]} 24. Rf1 {[%emt 0:00:34]} f5 {[%emt 0:03:39]} 25. Ne5 {[%emt 0:01:26]} Bxe5 {[%emt 0:03:01]} 26. Rxe5 {[%emt 0:00:13]} Rf6 {[%emt 0:00:19]} 0-1

[Event "22nd Hogeschool Zeeland 2018"]
[Site "Vlissingen"]
[Date "2018.08.08"]
[Round "6"]
[White "Mehar, Chinna Reddy CH"]
[Black "Beerdsen, Thomas"]
[Result "1/2-1/2"]
[ECO "D04"]
[WhiteElo "2345"]
[BlackElo "2469"]
[Annotator "ChessBase"]
[PlyCount "36"]
[EventDate "2018.08.04"]
[EventType "swiss"]
[EventCountry "NED"]
[SourceTitle "playchess.com"]
[Source "ChessBase"]
[SourceQuality "1"]
[TimeControl "40/5400+30:1800+30"]

1. d4 {[%emt 0:00:42]} d5 {[%emt 0:08:06]} 2. Nf3 {[%emt 0:00:32]} Nf6 {[%emt 0:00:25]} 3. e3 {[%emt 0:00:43]} c5 {[%emt 0:01:21]} 4. Bd3 {[%emt 0:00:11]} Nc6 {[%emt 0:00:24]} 5. O-O {[%emt 0:01:54]} Bg4 {[%emt 0:02:13]} 6. c3 {[%emt 0:00:43]} e5 {[%emt 0:04:19]} 7. dxe5 {[%emt 0:02:10]} Nxe5 {[%emt 0:00:49]} 8. Bb5+ {[%emt 0:00:08]} Ned7 {[%emt 0:03:04]} 9. h3 {[%emt 0:00:38]} Bxf3 {[%emt 0:02:36]} 10. Qxf3 {[%emt 0:00:07]} a6 {[%emt 0:00:06]} 11. Ba4 {[%emt 0:00:12]} b5 {[%emt 0:01:50]} 12. Bc2 {[%emt 0:02:20]} Bd6 {[%emt 0:05:04]} 13. e4 {[%emt 0:07:23]} dxe4 {[%emt 0:03:13]} 14. Bxe4 {[%emt 0:00:20]} Ne5 {[%emt 0:00:54]} 15. Bc6+ {[%emt 0:00:28]} Kf8 {[%emt 0:01:38]} 16. Bxa8 {[%emt 0:00:19]} Nxf3+ {[%emt 0:00:06]} 17. Bxf3 {[%emt 0:00:08]} Qe7 {[%emt 0:09:07]} 18. a4 {[%emt 0:01:30]} b4 {[%emt 0:01:27]} 1/2-1/2